bitfinex/quotes_ETHUSD_20220123
["timestamp","ask_amount","ask_price","bid_price","bid_amount"]
[1642896877803,0.492,2421.0,2420.1,0.00738951]
[1642896878003,0.492,2421.0,2419.8,0.00909478]
[1642896878004,1.52629,2421.0,2419.8,0.00909478]
[1642896878203,1.03428,2420.7,2419.8,0.00909478]
[1642896878402,0.23993948,2420.7,2419.8,3.81403372]
[1642896878605,46.71777692,2422.1,2420.6,1.32525428]
[1642896878606,0.00113685,2421.6,2420.6,1.32525428]
[1642896878805,0.00113685,2421.6,2421.0,0.01209715]
[1642896879205,0.00113685,2421.6,2421.1,0.00170527]
[1642896879406,0.00113685,2421.6,2421.2,0.20649]
[1642896879658,3.685e-05,2421.6,2421.5,0.0127484]
[1642896879856,3.685e-05,2421.6,2421.5,0.30675903]
[1642896880052,9.8188,2423.7,2421.6,0.03150555]
[1642896880053,3.9439,2423.7,2421.6,0.03150555]
[1642896880256,0.0001,2423.8,2422.3,0.01262452]
[1642896880456,0.0001,2423.8,2422.5,2.65]
[1642896880657,0.0001,2423.8,2422.9,0.01244158]
[1642896880860,0.0001,2423.8,2423.1,0.06804944]
[1642896880861,0.00227369,2423.7,2423.1,0.06804944]
[1642896881055,0.00237369,2424.1,2423.6,1.43155095]
[1642896881252,0.00237369,2424.1,2423.2,0.00284212]
[1642896881454,0.00170527,2424.0,2423.2,0.00284212]
[1642896881851,0.00237369,2424.1,2423.2,0.00284212]
[1642896881852,0.00113685,2423.9,2423.2,0.00284212]
[1642896882051,0.00113685,2423.9,2422.9,0.00454739]
[1642896882258,0.00113685,2423.9,2423.3,1.11554204]
[1642896882655,0.00113685,2423.9,2423.4,0.00170527]
[1642896882855,0.00113685,2423.9,2423.8,1.12385917]
[1642896883800,0.00113685,2423.9,2423.4,0.00170527]
[1642896884201,0.00113685,2423.9,2423.2,0.00284212]
[1642896884401,0.00113685,2423.9,2423.1,0.00341054]
[1642896884602,0.00113685,2423.9,2422.6,2.50451908]
[1642896884907,0.00397896,2423.8,2422.8,1.25239501]
[1642896885300,0.00341054,2423.7,2422.9,0.00113685]
[1642896885722,0.00284212,2423.6,2422.9,0.00113685]
[1642896886101,0.00227369,2423.5,2422.9,0.00113685]
[1642896886502,1.03295,2423.9,2422.6,0.00284212]
[1642896886503,0.00170527,2423.4,2422.6,0.00284212]
[1642896886702,0.49370527,2423.4,2422.4,0.00397897]
[1642896886901,24.34113685,2423.3,2422.3,0.00454739]
[1642896887154,24.34113685,2423.3,2422.2,0.00511581]
[1642896887355,0.30113685,2423.3,2422.2,0.00511581]
[1642896887755,0.00113685,2423.3,2422.2,0.00511581]
[1642896887955,0.00113685,2423.3,2422.2,1.50511581]
[1642896888456,0.30113685,2423.3,2422.3,0.00454739]
[1642896888658,0.00113685,2423.3,2422.3,0.00454739]
[1642896889461,25.37328,2423.1,2422.3,0.00454739]
[1642896889659,24.832,2423.0,2422.3,0.00454739]
[1642896890260,24.832,2423.0,2421.4,0.00231755]
[1642896890462,24.832,2423.0,2421.3,1.5]
[1642896890463,5.07031181,2422.9,2421.3,1.5]
[1642896890661,5.07031181,2422.9,2421.9,0.00227369]
[1642896890662,2.06728,2422.6,2421.9,0.00227369]
[1642896890910,24.34,2422.4,2421.9,0.00227369]
[1642896891103,0.492,2422.3,2421.9,0.00227369]
[1642896891301,0.492,2422.3,2421.0,0.00231755]
[1642896891302,2.65,2422.2,2421.0,0.00231755]
[1642896891502,0.492,2422.1,2421.1,0.00454739]
[1642896891702,0.49313684,2422.1,2421.1,0.00454739]
[1642896891904,0.00113684,2422.1,2421.4,0.01255808]
[1642896892103,0.00113684,2422.1,2421.6,1.33878421]
[1642896892501,0.00113684,2422.1,2421.7,1.15277727]
[1642896892715,0.00113684,2422.1,2421.8,0.20649]
[1642896892903,0.00113684,2422.1,2422.0,2.66277751]
[1642896893304,0.00113684,2422.1,2421.7,1.15277727]
[1642896893504,0.00113684,2422.1,2421.7,1.16520103]
[1642896894305,0.492,2423.0,2422.1,0.00227368]
[1642896894511,0.792,2423.0,2422.1,0.00227368]
[1642896894766,0.00454739,2422.9,2422.1,0.00227368]
[1642896894965,0.492,2422.8,2422.1,0.00227368]
[1642896895169,0.49597897,2422.8,2422.1,0.00227368]
[1642896895372,0.00341054,2422.7,2422.1,0.00227368]
[1642896895572,0.49541054,2422.7,2422.4,1.13109327]
[1642896895770,0.00284212,2422.6,2422.4,1.13109327]
[1642896895972,0.00284212,2422.6,2422.5,1.5]
[1642896896170,0.13819997,2423.5,2422.5,1.5]
[1642896896369,0.492,2423.4,2422.5,1.5]
[1642896896569,24.34,2423.3,2422.5,1.5]
[1642896896872,0.49825266,2423.2,2422.5,1.5]
[1642896897070,0.49825266,2423.2,2422.1,0.00227368]
[1642896897269,0.00568424,2423.1,2422.1,0.00227368]
[1642896897470,0.492,2423.0,2422.1,0.00227368]
[1642896897671,0.79711582,2423.0,2422.1,0.00227368]
[1642896897873,0.00454739,2422.9,2422.1,0.00227368]
[1642896898078,24.34,2422.7,2422.1,0.00227368]
[1642896898270,0.492,2422.6,2422.1,0.00227368]
[1642896898522,0.492,2422.6,2421.9,0.01798625]
[1642896898523,2.65,2422.5,2421.9,0.01798625]
[1642896898723,0.492,2422.4,2421.9,0.01798625]
[1642896898924,0.49370527,2422.4,2421.9,0.01798625]
[1642896899122,0.00113685,2422.3,2421.9,0.01798625]
[1642896899325,2.65,2422.1,2420.9,0.00232853]
[1642896899538,2.65,2422.1,2420.6,1.5]
[1642896899539,1.492,2422.0,2420.6,1.5]
[1642896899725,1.79313685,2422.0,2421.0,0.00454738]
[1642896900024,26.13313685,2422.0,2421.0,0.00454738]
[1642896900432,24.34,2421.8,2421.0,0.00454738]
[1642896900625,1.492,2421.7,2421.0,0.00454738]
[1642896901025,24.64,2421.6,2421.0,0.00454738]
[1642896901225,0.492,2421.5,2420.3,0.00852635]
[1642896901425,2.06829,2421.3,2420.3,0.00852635]
[1642896901727,2.06829,2421.3,2420.1,1.51220286]
[1642896901728,0.492,2421.2,2420.2,0.00909477]
[1642896901924,24.34,2421.1,2420.2,0.00909477]
[1642896902153,0.3,2421.2,2420.2,0.00909477]
[1642896902352,0.492,2421.1,2420.2,0.00909477]
[1642896902550,0.3,2420.9,2419.9,0.01080004]
[1642896902751,0.492,2420.8,2419.9,0.01080004]
[1642896903151,0.792,2420.8,2419.9,0.01080004]
[1642896903350,1.092,2420.8,2419.9,0.01080004]
[1642896904151,2.35,2420.7,2419.4,4.72885349]
[1642896904355,0.07536195,2420.0,2419.4,2.21447423]
[1642896904553,0.07536195,2420.0,2419.5,0.00113685]
[1642896904752,0.00113685,2419.9,2419.5,0.00113685]
[1642896905351,0.00113685,2419.9,2419.4,0.00170527]
[1642896906099,1.36656239,2419.6,2419.4,0.00170527]
[1642896906301,0.00113685,2419.9,2419.4,0.00170527]
[1642896907500,1.11235054,2419.6,2419.4,0.00170527]
[1642896909304,8.77244579,2419.5,2419.4,0.00170527]
[1642896909506,17.84489158,2419.5,2419.4,0.00170527]
[1642896910554,17.54489158,2419.5,2419.4,0.00170527]
[1642896910755,0.00113685,2419.9,2419.5,2.65]
[1642896910952,0.00113685,2419.9,2419.8,1.5]
[1642896911950,0.00113685,2419.9,2419.7,1.09078172]
[1642896912854,0.00113685,2419.9,2419.7,2.09078172]
[1642896913077,0.00113685,2419.9,2419.8,4.15]
[1642896913256,0.00113685,2419.9,2419.8,4.1621197]
[1642896913504,0.00113685,2419.9,2419.8,1.5]
[1642896913907,0.00113685,2419.9,2419.5,0.01713631]
[1642896914301,0.492,2420.5,2419.9,0.0022737]
[1642896914502,1.4227118,2420.4,2419.9,0.0022737]
[1642896914705,1.42555392,2420.4,2419.9,0.0022737]
[1642896914902,0.3,2420.3,2419.9,0.0022737]
[1642896915301,0.00170527,2420.2,2419.9,0.0022737]
[1642896915806,0.00113684,2420.1,2419.9,0.0022737]
[1642896916005,0.00113684,2420.1,2419.6,0.00170527]
[1642896916006,3.142,2420.0,2419.6,0.00170527]
[1642896916203,3.3308793,2420.0,2419.6,0.00170527]
[1642896916410,25.35287517,2419.9,2419.4,0.00284212]
[1642896916607,25.35287517,2419.9,2419.0,1.5]
[1642896916608,3.142,2419.8,2419.0,1.5]
[1642896916803,3.142,2419.8,2418.6,0.00232853]
[1642896916804,2.65,2419.4,2418.3,0.00232853]
[1642896917003,3.06224134,2419.3,2418.3,0.00232853]
[1642896917267,3.06224134,2419.3,2418.4,0.00398423]
[1642896917268,25.3750788,2419.0,2418.4,0.00398423]
[1642896917468,1.85755089,2418.9,2418.4,0.00398423]
[1642896917663,2.15755089,2418.9,2418.4,0.00398423]
[1642896917864,2.15755089,2418.9,2418.2,0.00512108]
[1642896917865,3.6172,2418.8,2418.2,0.00512108]
[1642896918068,1.44708007,2417.9,2417.7,0.0079632]
[1642896918265,0.492,2418.4,2418.1,2.89416013]
[1642896918663,0.492,2418.4,2418.2,0.00512108]
[1642896918905,0.492,2418.4,2417.1,0.08984916]
[1642896918906,2.65,2418.2,2417.1,0.08984916]
[1642896919069,0.492,2418.1,2416.8,2.43762853]
[1642896919265,1.22253285,2417.9,2417.2,1.52288899]
[1642896919564,25.132,2417.8,2417.3,0.00511581]
[1642896919863,0.792,2417.8,2417.3,1.16433757]
[1642896920264,0.792,2417.8,2417.4,0.00454739]
[1642896920265,0.492,2417.8,2417.4,0.00454739]
[1642896920464,0.492,2418.4,2417.4,0.00454739]
[1642896920666,24.34,2418.3,2417.4,0.00454739]
[1642896920912,0.0149588,2418.1,2417.3,0.00511581]
[1642896921110,0.492,2418.0,2416.8,1.94444961]
[1642896921307,0.49768423,2418.0,2416.6,0.10030622]
[1642896921506,1.48300919,2417.9,2417.2,2.67183873]
[1642896921707,0.492,2417.8,2417.2,2.67183873]
[1642896922006,0.00397896,2417.7,2417.2,2.67183873]
[1642896922408,0.00341054,2417.6,2417.2,1.20569073]
[1642896922606,0.00341054,2417.6,2416.7,0.00170527]
[1642896922809,0.492,2417.8,2416.7,0.00170527]
[1642896922810,0.00284211,2417.5,2416.7,2.5050413]
[1642896923009,0.492,2417.8,2417.5,0.00568422]
[1642896923411,0.00113685,2417.7,2417.5,0.00568422]
[1642896924016,27.782,2417.6,2416.8,0.00397896]
[1642896924211,3.742,2417.6,2416.8,0.00397896]
[1642896924410,3.742,2417.6,2416.7,1.34920386]
[1642896924663,1.16348332,2417.4,2416.8,0.00397896]
[1642896924864,0.3,2417.4,2416.8,0.00397896]
[1642896925064,1.03559,2417.5,2416.8,0.00397896]
[1642896926273,2.65,2417.3,2416.0,2.83129763]
[1642896926466,0.492,2417.2,2416.0,2.81662318]
[1642896926667,1.03588,2417.0,2416.4,0.00227369]
[1642896926867,3.142,2416.9,2416.0,2.81662318]
[1642896927065,3.14484211,2416.9,2416.1,0.00170527]
[1642896927265,0.00227369,2416.8,2416.1,0.00170527]
[1642896927465,1.64827001,2416.7,2416.0,2.51662318]
[1642896927666,27.02600528,2416.7,2416.0,2.51662318]
[1642896927866,27.02600528,2416.7,2415.6,0.2105558]
[1642896927867,0.00284211,2416.6,2415.6,0.2105558]
[1642896928066,0.492,2416.5,2415.6,0.2105558]
[1642896928271,0.49427369,2416.5,2415.7,0.0022737]
[1642896928508,1.27855249,2416.1,2415.7,0.0022737]
[1642896928713,1.57855249,2416.1,2415.7,0.0022737]
[1642896928914,1.57855249,2416.1,2415.6,0.2105558]
[1642896928915,2.65,2416.0,2415.6,0.2105558]
[1642896929109,0.492,2415.9,2415.6,0.2105558]
[1642896929308,0.49313685,2415.9,2415.6,0.2105558]
[1642896930109,0.3,2416.5,2415.9,0.68786756]
[1642896930311,3.9716,2416.7,2415.9,0.68786756]
[1642896930312,0.492,2416.4,2415.9,0.68786756]
[1642896930511,0.49484212,2416.4,2415.9,0.68786756]
[1642896930710,0.00284212,2416.4,2416.2,1.40104274]
[1642896931208,0.00284212,2416.4,2415.9,0.68786756]
[1642896932009,0.00284212,2416.4,2416.3,1.2880838]
[1642896932658,0.00284212,2416.4,2415.9,0.68786756]
[1642896932858,0.00284212,2416.4,2415.9,0.63786756]
[1642896933062,0.492,2416.5,2416.4,0.00625267]
[1642896933262,1.33594,2416.6,2416.4,0.00625267]
[1642896933263,2.65,2416.8,2416.4,0.00625267]
[1642896933458,0.00113685,2416.5,2416.4,0.00625267]
[1642896933659,0.49313685,2416.5,2416.4,0.00625267]
[1642896934458,5.67780893,2417.2,2416.4,0.00625267]
[1642896934658,0.492,2416.8,2416.4,0.00625267]
[1642896934859,0.492,2416.7,2416.6,0.00279211]
[1642896935260,1.6561578,2416.7,2416.6,0.00279211]
[1642896935462,2.65,2416.6,2416.4,0.00625267]
[1642896935763,3.142,2416.5,2416.4,0.00625267]
[1642896936007,3.142,2416.5,2415.6,0.2105558]
[1642896936008,2.65,2416.4,2415.6,0.2105558]
[1642896936215,1.03616,2416.2,2415.6,0.2105558]
[1642896936407,0.492,2416.1,2415.7,0.00284212]
[1642896936616,3.68628,2416.0,2415.6,0.2105558]
[1642896936811,0.492,2415.9,2415.6,0.1605558]
[1642896937009,2.65,2415.8,2414.8,0.08752063]
[1642896937206,1.03636,2415.6,2414.8,0.08752063]
[1642896937405,0.492,2415.5,2414.9,0.00454739]
[1642896937808,0.492,2415.5,2414.9,4.739e-05]
[1642896937809,0.792,2415.5,2414.9,4.739e-05]
[1642896938010,24.34,2415.2,2413.9,3.1329]
[1642896938208,24.34,2415.2,2413.7,0.00233955]
[1642896938209,24.832,2415.1,2414.4,0.00284211]
[1642896938408,24.83313685,2415.1,2414.4,0.00284211]
[1642896938605,0.49313685,2415.1,2413.8,3.52936587]
[1642896938806,1.03664,2415.2,2415.1,0.68197754]
[1642896939007,2.4,2415.1,2414.5,1.14396259]
[1642896939208,1.33664,2415.2,2414.5,1.14396259]
[1642896939412,1.33664,2415.2,2414.6,0.00284212]
[1642896939413,0.492,2415.1,2414.6,0.00284212]
[1642896940055,0.492,2415.1,2414.8,1.32409773]
[1642896940258,0.492,2415.1,2415.0,1.04287609]
[1642896940464,0.492,2415.1,2414.9,0.00113685]
[1642896940867,4.92388,2415.9,2414.9,0.00113685]
[1642896941158,0.01495943,2415.3,2414.9,0.00113685]
[1642896941457,2.0,2415.1,2414.2,0.1656]
[1642896941658,2.0,2415.1,2413.9,0.01244792]
[1642896941659,2.492,2415.1,2413.9,0.01244792]
[1642896941857,0.492,2415.1,2414.3,0.00341054]
[1642896942257,0.492,2415.1,2414.2,0.00397896]
[1642896942458,0.492,2415.1,2415.0,1.13289108]
[1642896942860,0.492,2415.1,2415.0,1.04647387]
[1642896942861,0.00113685,2415.1,2415.0,1.04647387]
[1642896943059,0.00113685,2415.1,2414.4,0.21882734]
[1642896943414,0.492,2415.7,2415.3,0.03219255]
[1642896943610,0.492,2415.7,2414.5,0.00341054]
[1642896943611,3.142,2415.6,2414.5,0.00341054]
[1642896943804,0.79484212,2415.6,2414.5,0.00341054]
[1642896944104,2.09484212,2415.6,2414.3,0.00454739]
[1642896944305,1.29148628,2414.9,2414.3,0.00454739]
[1642896945307,1.29148628,2414.9,2413.8,0.0073895]
[1642896945506,0.492,2415.1,2413.9,1.00682108]
[1642896945705,0.492,2415.1,2413.8,0.0073895]
[1642896945905,0.492,2415.1,2414.0,0.00625266]
[1642896946106,0.492,2415.1,2413.8,0.0073895]
[1642896946707,0.492,2415.1,2414.3,1.14704168]
[1642896946708,1.24830462,2415.0,2414.3,1.14704168]
[1642896946907,1.24830462,2415.0,2413.8,0.0073895]
[1642896947159,0.492,2415.1,2414.4,0.00397896]
[1642896947360,0.492,2415.1,2413.8,0.0073895]
[1642896948356,1.30119913,2415.3,2415.2,0.98399999]
[1642896948557,0.00284212,2415.6,2415.2,0.98399999]
[1642896948761,1.08693933,2416.0,2415.2,0.98399999]
[1642896948762,0.00113685,2415.3,2415.2,0.98399999]
[1642896948956,0.0022737,2415.5,2415.3,0.05136514]
[1642896949155,0.05067933,2416.0,2415.2,0.98399999]
[1642896949355,0.492,2415.7,2415.2,0.98399999]
[1642896950556,0.80465468,2415.7,2415.2,0.98399999]
[1642896950757,0.80465468,2415.7,2414.3,6.86686094]
[1642896950758,2.65,2415.6,2414.3,6.86686094]
[1642896951019,2.65,2415.6,2414.3,1.1745]
[1642896951020,0.492,2415.5,2414.3,1.1745]
[1642896951219,0.7942737,2415.5,2414.4,0.00397896]
[1642896951419,1.10604146,2414.9,2414.4,0.00397896]
[1642896953219,3.98970527,2415.4,2414.9,2.21208291]
[1642896953518,0.00113685,2415.3,2414.9,2.21208291]
[1642896953917,1.56057834,2415.2,2414.9,2.21208291]
[1642896954756,0.37899402,2415.1,2414.9,2.21208291]
[1642896954961,0.492,2415.5,2415.0,0.00227369]
[1642896955165,4.1452478,2416.1,2415.1,2.65]
[1642896955166,1.0362,2415.9,2415.1,2.65]
[1642896955366,2.07241,2416.1,2415.1,2.65]
[1642896955367,0.492,2416.1,2415.2,0.01241025]
[1642896955560,0.492,2416.1,2415.2,0.01354709]
[1642896955561,0.00113685,2415.6,2415.2,0.01354709]
[1642896955965,0.00113685,2415.6,2415.2,0.00113684]
[1642896956261,0.492,2415.5,2414.9,2.21208291]
[1642896956458,0.49370527,2415.5,2415.0,0.00113685]
[1642896956661,0.00113684,2415.4,2415.0,0.00113685]
[1642896957061,33.39634,2416.8,2415.2,2.65]
[1642896957062,0.492,2416.4,2415.2,2.65]
[1642896957359,1.03591,2416.9,2415.5,0.01235821]
[1642896957360,0.00170527,2415.7,2415.5,0.01235821]
[1642896957559,0.00170527,2415.7,2415.0,3.62817369]
[1642896957766,0.00113685,2415.6,2415.0,3.62817369]
[1642896957960,0.00113685,2415.6,2415.1,0.00170527]
[1642896958160,0.492,2416.1,2415.1,0.00170527]
[1642896958412,0.37899402,2415.4,2415.0,0.00227369]
[1642896959306,1.52824,2415.8,2415.0,0.00227369]
[1642896959607,2.12824,2415.8,2415.0,0.00227369]
[1642896960208,0.37899402,2415.2,2415.0,0.00227369]
[1642896960420,0.492,2415.5,2415.0,0.00227369]
[1642896960619,3.81771054,2416.0,2415.0,0.00227369]
[1642896960810,0.00284212,2415.9,2415.0,0.00227369]
[1642896961212,0.4942737,2415.8,2415.0,0.00227369]
[1642896961612,0.492,2415.8,2415.0,0.00227369]
[1642896961810,0.792,2415.8,2415.0,0.00227369]
[1642896962011,1.03629,2415.7,2415.0,0.00227369]
[1642896962264,0.37899402,2415.3,2415.0,0.00227369]
[1642896962461,0.00113685,2415.6,2415.0,0.00227369]
[1642896963465,1.03629,2415.7,2415.6,0.0022737]
[1642896963663,1.0363,2416.0,2415.0,0.00341054]
[1642896963664,1.03613,2416.0,2415.0,0.00341054]
[1642896964166,0.37899402,2415.5,2415.0,0.00341054]
[1642896964764,0.00170527,2415.9,2415.0,0.00341054]
[1642896964964,0.00170527,2415.9,2415.0,2.49425451]
[1642896965164,3.0852249,2416.6,2415.1,0.20649]
[1642896965165,0.00113685,2415.8,2415.1,0.20649]
[1642896965377,0.00113685,2415.8,2415.1,3.52548461]
[1642896965579,0.00284212,2416.1,2415.2,2.45134543]
[1642896965765,0.00284212,2416.1,2415.3,3.5348838]
[1642896965766,0.38183614,2416.1,2415.3,3.5348838]
[1642896966013,0.01641158,2416.0,2415.4,3.52264249]
[1642896966209,0.01641158,2416.0,2415.5,3.52264249]
[1642896966412,0.01641158,2416.0,2415.4,0.00113685]
[1642896966810,0.01641158,2416.0,2415.3,3.52246332]
[1642896967110,0.01641158,2416.0,2415.4,3.6339827]
[1642896967313,3.942,2416.9,2415.5,6.31066329]
[1642896967513,3.12043145,2417.4,2415.7,0.01208476]
[1642896967514,1.03561,2417.3,2415.7,0.01208476]
[1642896967711,1.03561,2417.3,2416.1,2.76856699]
[1642896967712,0.00284212,2416.5,2416.1,2.76856699]
[1642896967913,0.00284212,2416.5,2416.2,3.52246332]
[1642896968912,0.00284212,2416.5,2416.2,6.03648592]
[1642896969116,0.00284212,2416.5,2416.4,2.85649]
[1642896969317,4.212e-05,2416.5,2416.4,9.12022274]
[1642896969516,0.03004212,2417.8,2416.6,0.05201082]
[1642896969758,0.03004212,2417.8,2416.9,0.01273829]
[1642896969958,0.03004212,2417.8,2417.0,0.37179]
[1642896969959,0.00568423,2417.5,2417.0,0.37179]
[1642896970156,0.00568423,2417.5,2417.1,6.44141712]
[1642896970359,0.04,2418.1,2417.4,3.7061521]
[1642896970561,0.04,2418.1,2417.5,5.23760642]
[1642896970766,0.04,2418.5,2417.6,2.65]
[1642896970961,0.04,2418.5,2417.7,3.07262364]
[1642896971156,0.04,2418.5,2417.8,0.17719099]
[1642896971157,0.00170527,2418.0,2417.8,0.17719099]
[1642896971361,5.27e-06,2418.0,2417.9,2.85649]
[1642896971556,0.04,2418.5,2417.9,6.87243094]
[1642896971758,0.04,2418.5,2418.0,1.45247483]
[1642896971957,0.00227897,2418.4,2418.2,1.40337257]
[1642896972160,0.00227897,2418.4,2417.9,0.37179]
[1642896972360,0.00171054,2418.3,2417.8,0.08752063]
[1642896972558,0.00171054,2418.3,2417.4,0.13819997]
[1642896972759,0.04,2418.5,2417.4,0.13819997]
[1642896972760,0.00114212,2418.2,2417.4,0.13819997]
[1642896972961,0.00114212,2418.2,2417.5,0.00283685]
[1642896973161,0.00114212,2418.2,2417.5,1.18181023]
[1642896973616,0.00114212,2418.2,2417.6,0.00226842]
[1642896974216,0.00114212,2418.2,2417.5,0.00283685]
[1642896974820,1.03527,2418.1,2417.5,0.00283685]
[1642896975016,1.03527,2418.1,2417.2,1.2275]
[1642896975017,1.03527,2418.1,2417.3,0.00397369]
[1642896975216,0.00114212,2418.2,2417.3,1.10052321]
[1642896975416,0.00114212,2418.2,2417.3,0.00397369]
[1642896975617,0.00114212,2418.2,2417.4,0.00340527]
[1642896975824,0.00114212,2418.2,2417.3,0.00397369]
[1642896976021,0.00114212,2418.2,2417.0,0.00567896]
[1642896977020,1.03635212,2418.2,2417.0,0.00567896]
[1642896977458,0.492,2418.1,2417.0,0.00567896]
[1642896977657,2.07086,2417.9,2417.0,0.00567896]
[1642896977863,0.492,2417.8,2417.0,0.00567896]
[1642896978259,1.03542,2417.7,2417.0,0.00567896]
[1642896978462,1.03542,2417.7,2417.0,1.17143977]
[1642896978665,0.49314212,2418.2,2417.0,1.17143977]
[1642896978866,0.00114212,2418.2,2417.1,2.53103296]
[1642896979061,0.00114212,2418.2,2417.2,1.16805826]
[1642896979262,0.00114212,2418.2,2417.6,1.23209926]
[1642896979466,0.00114212,2418.2,2417.9,1.24816251]
[1642896979667,0.00114212,2418.2,2417.7,0.0017]
[1642896980067,0.00114212,2418.2,2417.4,0.00340527]
[1642896980664,0.00114212,2418.2,2418.0,1.5398542]
[1642896980921,0.04,2418.5,2418.2,2.10228423]
[1642896981327,0.00113685,2418.4,2418.2,2.10228423]
[1642896981717,0.00113685,2418.4,2418.3,1.23337923]
[1642896982719,0.00113685,2418.4,2418.2,0.00228423]
[1642896982720,0.38013087,2418.4,2418.2,0.00228423]
[1642896983121,0.00113685,2418.4,2418.2,0.00228423]
[1642896983720,0.00113685,2418.4,2418.3,3.79526238]
[1642896984120,3.685e-05,2418.5,2418.4,2.65]
[1642896984319,0.04,2418.9,2418.5,2.15]
[1642896984764,0.00227369,2418.8,2418.5,2.15]
[1642896985063,0.04,2418.9,2418.5,2.15]
[1642896985064,0.00170527,2418.7,2418.5,2.15]
[1642896985263,0.00170527,2418.7,2418.5,3.38869212]
[1642896985467,0.00113684,2418.6,2418.5,1.23869212]
[1642896985968,0.00113684,2418.6,2418.2,0.00228423]
[1642896990920,0.01331035,2418.5,2418.2,0.00228423]
[1642896993357,0.01331035,2418.5,2418.3,1.28568101]
[1642896993560,0.01331035,2418.5,2418.4,2.41329844]
[1642896993761,0.01331035,2418.5,2418.3,1.28568101]
[1642896995262,0.01331035,2418.5,2418.2,0.00228423]
[1642897001059,0.00113684,2418.6,2418.5,0.0266207]
[1642897001658,0.32313684,2419.0,2418.5,0.0266207]
[1642897002062,0.00113685,2418.8,2418.5,0.0266207]
[1642897006312,25.37609685,2418.8,2418.5,0.0266207]
[1642897006614,25.37609685,2418.8,2418.2,0.00228423]
[1642897006615,27.45825854,2418.6,2418.2,0.00228423]
[1642897006812,0.792,2418.5,2418.2,0.00228423]
[1642897007012,2.65,2418.4,2418.3,0.00170527]
[1642897007458,2.95,2418.4,2417.2,3.52750712]
[1642897007655,2.95,2418.4,2417.0,6.67351595]
[1642897007656,2.95,2418.4,2417.3,0.0073895]
[1642897008056,2.95,2418.4,2417.1,0.00852635]
[1642897008258,2.95,2418.4,2417.2,3.51985902]
[1642897008655,2.95,2418.4,2417.3,0.0073895]
[1642897009057,2.95,2418.4,2417.4,3.51953203]
[1642897009459,2.95,2418.4,2417.5,3.52578469]
[1642897009656,2.95,2418.4,2417.5,0.00625266]
[1642897009858,2.95,2418.4,2417.6,0.00568423]
[1642897010065,1.03531,2418.2,2417.2,0.00795793]
[1642897010258,1.03531,2418.2,2417.1,0.00852635]
[1642897010259,1.03538,2418.0,2417.1,0.00852635]
[1642897010477,0.492,2417.9,2417.2,3.52011669]
[1642897010762,0.492,2417.9,2417.3,0.0073895]
[1642897010763,24.72177272,2417.8,2417.3,0.0073895]
[1642897011013,24.34,2417.6,2416.5,0.00852636]
[1642897011214,0.492,2417.5,2416.6,3.52463767]
[1642897011416,0.87490956,2417.5,2416.6,3.52463767]
[1642897011612,1.17490956,2417.5,2416.7,0.00341054]
[1642897012014,2.21050956,2417.5,2416.7,0.00341054]
[1642897012723,0.38290956,2417.5,2417.1,1.47135283]
[1642897012913,0.38290956,2417.5,2416.7,0.00341054]
[1642897013118,1.0356,2417.3,2416.7,0.00341054]
[1642897013315,1.97964142,2417.3,2416.7,0.00341054]
[1642897014316,2.27964142,2417.3,2416.7,0.00341054]
[1642897014515,2.65,2417.1,2416.5,0.00852636]
[1642897014771,25.37582,2416.9,2416.5,0.00852636]
[1642897014962,2.65,2416.7,2415.7,1.56935736]
[1642897015161,0.492,2416.6,2415.8,3.52179755]
[1642897015370,0.87710557,2416.6,2415.9,3.52179755]
[1642897015864,0.87710557,2416.6,2416.0,0.00397897]
[1642897016462,0.87710557,2416.6,2415.7,1.37456557]
[1642897016665,0.87710557,2416.6,2415.6,0.00625266]
[1642897016864,0.87710557,2416.6,2415.7,3.52179755]
[1642897018065,0.87710557,2416.6,2415.7,11.00179755]
[1642897018264,0.87710557,2416.6,2415.6,0.00625266]
[1642897018265,1.03594,2416.5,2415.6,0.00625266]
[1642897018509,0.3,2416.4,2415.7,3.52204099]
[1642897018709,0.62121485,2416.4,2415.7,3.52204099]
[1642897018912,0.62121485,2416.4,2415.5,0.00682108]
[1642897019108,0.62121485,2416.4,2415.6,3.5221332]
[1642897019309,0.62121485,2416.4,2415.5,0.00682108]
[1642897019611,0.62121485,2416.4,2415.4,0.00738951]
[1642897019811,0.62121485,2416.4,2415.5,3.52216864]
[1642897020014,0.32121485,2416.4,2415.5,4.78989042]
[1642897020312,5.90136527,2417.0,2415.9,1.15740452]
[1642897020313,3.82970527,2417.0,2415.9,1.15740452]
[1642897020518,3.82970527,2417.0,2416.0,3.5214131]
[1642897020713,0.00113684,2416.9,2416.3,1.50607401]
[1642897020914,0.00113684,2416.9,2416.1,0.00341054]
[1642897021112,0.00113684,2416.9,2416.4,0.00170527]
[1642897021311,0.00113684,2416.9,2416.3,1.25639224]
[1642897021513,3.828,2417.0,2416.9,0.00227368]
[1642897021812,3.828,2417.0,2415.8,1.61160579]
[1642897021813,2.7,2416.9,2415.8,1.61160579]
[1642897022012,2.7,2416.9,2415.8,1.40511579]
[1642897022279,3.192,2416.9,2415.9,0.00284212]
[1642897022775,3.492,2416.9,2415.9,0.00284212]
[1642897022979,3.792,2416.9,2415.9,0.00284212]
[1642897023770,1.03581,2416.8,2415.9,0.00284212]
[1642897023973,1.52781,2416.8,2415.9,0.00284212]
[1642897024174,0.00170527,2416.7,2415.9,0.00284212]
[1642897024372,0.00170527,2416.7,2416.0,1.21962301]
[1642897024574,1.0,2417.2,2415.9,0.00284212]
[1642897024575,0.00113684,2416.6,2416.4,1.27778938]
[1642897024971,0.07394252,2417.2,2416.4,1.27778938]
[1642897024972,0.00397896,2417.1,2416.4,1.27778938]
[1642897025172,0.00397896,2417.1,2416.1,0.00170527]
[1642897025571,0.00397896,2417.1,2416.0,0.0022737]
[1642897025779,0.492,2417.0,2416.0,0.0022737]
[1642897026014,1.03581,2416.8,2416.0,0.0022737]
[1642897026215,0.3550515,2416.4,2416.0,0.0022737]
[1642897026415,3.64640527,2416.7,2416.0,0.0022737]
[1642897026613,3.94640527,2416.7,2416.0,0.0022737]
[1642897026816,0.00113684,2416.6,2416.0,0.0022737]
[1642897027015,0.492,2416.5,2416.0,0.0022737]
[1642897027215,1.03601,2416.4,2416.0,0.0022737]
[1642897027414,1.00113684,2416.6,2416.0,0.0022737]
[1642897027415,0.492,2416.3,2416.0,0.0022737]